Workbook

Sheet synthese
B1: 1985 | C1: =B1-1 -> 1984 | D1: Evolution | E1: Moyenne mobile
A2: Janvier | B2: =CHOOSE($H$28, SUMIFS(stockage!$D:$D,stockage!$C:$C,B$1,stockage!$B:$B,$A2), SUMIFS(stockage!$E:$E,stockage!$C:$C,B$1,stockage!$B:$B,$A2), SUMIFS(stockage!$D:$D,stockage!$C:$C,B$1,stockage!$B:$B,$A2)+SUMIFS(stockage!$E:$E,stockage!$C:$C,B$1,stockage!$B:$B,$A2)) -> 163 | C2: =CHOOSE($H$28, SUMIFS(stockage!$D:$D,stockage!$C:$C,C$1,stockage!$B:$B,$A2), SUMIFS(stockage!$E:$E,stockage!$C:$C,C$1,stockage!$B:$B,$A2), SUMIFS(stockage!$D:$D,stockage!$C:$C,C$1,stockage!$B:$B,$A2)+SUMIFS(stockage!$E:$E,stockage!$C:$C,C$1,stockage!$B:$B,$A2)) -> 310 | D2: =(B2-C2)/C2 -> -0.4741935484 | E2: =AVERAGE(OFFSET(E2,13-$G$36,-2,$G$36,1)) -> 279.25
A3: Fevrier | B3: =CHOOSE($H$28, SUMIFS(stockage!$D:$D,stockage!$C:$C,B$1,stockage!$B:$B,$A3), SUMIFS(stockage!$E:$E,stockage!$C:$C,B$1,stockage!$B:$B,$A3), SUMIFS(stockage!$D:$D,stockage!$C:$C,B$1,stockage!$B:$B,$A3)+SUMIFS(stockage!$E:$E,stockage!$C:$C,B$1,stockage!$B:$B,$A3)) -> 173 | C3: =CHOOSE($H$28, SUMIFS(stockage!$D:$D,stockage!$C:$C,C$1,stockage!$B:$B,$A3), SUMIFS(stockage!$E:$E,stockage!$C:$C,C$1,stockage!$B:$B,$A3), SUMIFS(stockage!$D:$D,stockage!$C:$C,C$1,stockage!$B:$B,$A3)+SUMIFS(stockage!$E:$E,stockage!$C:$C,C$1,stockage!$B:$B,$A3)) -> 263 | D3: =(B3-C3)/C3 -> -0.3422053232 | E3: =AVERAGE(OFFSET(E3,13-$G$36,-2,$G$36,1)) -> 271.75
A4: Mars | B4: =CHOOSE($H$28, SUMIFS(stockage!$D:$D,stockage!$C:$C,B$1,stockage!$B:$B,$A4), SUMIFS(stockage!$E:$E,stockage!$C:$C,B$1,stockage!$B:$B,$A4), SUMIFS(stockage!$D:$D,stockage!$C:$C,B$1,stockage!$B:$B,$A4)+SUMIFS(stockage!$E:$E,stockage!$C:$C,B$1,stockage!$B:$B,$A4)) -> 293 | C4: =CHOOSE($H$28, SUMIFS(stockage!$D:$D,stockage!$C:$C,C$1,stockage!$B:$B,$A4), SUMIFS(stockage!$E:$E,stockage!$C:$C,C$1,stockage!$B:$B,$A4), SUMIFS(stockage!$D:$D,stockage!$C:$C,C$1,stockage!$B:$B,$A4)+SUMIFS(stockage!$E:$E,stockage!$C:$C,C$1,stockage!$B:$B,$A4)) -> 253 | D4: 0.1581027668 | E4: 275.0833333
A5: Avril | B5: =CHOOSE($H$28, SUMIFS(stockage!$D:$D,stockage!$C:$C,B$1,stockage!$B:$B,$A5), SUMIFS(stockage!$E:$E,stockage!$C:$C,B$1,stockage!$B:$B,$A5), SUMIFS(stockage!$D:$D,stockage!$C:$C,B$1,stockage!$B:$B,$A5)+SUMIFS(stockage!$E:$E,stockage!$C:$C,B$1,stockage!$B:$B,$A5)) -> 314 | C5: =CHOOSE($H$28, SUMIFS(stockage!$D:$D,stockage!$C:$C,C$1,stockage!$B:$B,$A5), SUMIFS(stockage!$E:$E,stockage!$C:$C,C$1,stockage!$B:$B,$A5), SUMIFS(stockage!$D:$D,stockage!$C:$C,C$1,stockage!$B:$B,$A5)+SUMIFS(stockage!$E:$E,stockage!$C:$C,C$1,stockage!$B:$B,$A5)) -> 264 | D5: 0.1893939394 | E5: 279.25
A6: Mai | B6: =CHOOSE($H$28, SUMIFS(stockage!$D:$D,stockage!$C:$C,B$1,stockage!$B:$B,$A6), SUMIFS(stockage!$E:$E,stockage!$C:$C,B$1,stockage!$B:$B,$A6), SUMIFS(stockage!$D:$D,stockage!$C:$C,B$1,stockage!$B:$B,$A6)+SUMIFS(stockage!$E:$E,stockage!$C:$C,B$1,stockage!$B:$B,$A6)) -> 349 | C6: =CHOOSE($H$28, SUMIFS(stockage!$D:$D,stockage!$C:$C,C$1,stockage!$B:$B,$A6), SUMIFS(stockage!$E:$E,stockage!$C:$C,C$1,stockage!$B:$B,$A6), SUMIFS(stockage!$D:$D,stockage!$C:$C,C$1,stockage!$B:$B,$A6)+SUMIFS(stockage!$E:$E,stockage!$C:$C,C$1,stockage!$B:$B,$A6)) -> 284 | D6: 0.2288732394 | E6: 284.6666667
A7: Juin | B7: =CHOOSE($H$28, SUMIFS(stockage!$D:$D,stockage!$C:$C,B$1,stockage!$B:$B,$A7), SUMIFS(stockage!$E:$E,stockage!$C:$C,B$1,stockage!$B:$B,$A7), SUMIFS(stockage!$D:$D,stockage!$C:$C,B$1,stockage!$B:$B,$A7)+SUMIFS(stockage!$E:$E,stockage!$C:$C,B$1,stockage!$B:$B,$A7)) -> 352 | C7: =CHOOSE($H$28, SUMIFS(stockage!$D:$D,stockage!$C:$C,C$1,stockage!$B:$B,$A7), SUMIFS(stockage!$E:$E,stockage!$C:$C,C$1,stockage!$B:$B,$A7), SUMIFS(stockage!$D:$D,stockage!$C:$C,C$1,stockage!$B:$B,$A7)+SUMIFS(stockage!$E:$E,stockage!$C:$C,C$1,stockage!$B:$B,$A7)) -> 350 | D7: 0.005714285714 | E7: 284.8333333
A8: Juillet | B8: =CHOOSE($H$28, SUMIFS(stockage!$D:$D,stockage!$C:$C,B$1,stockage!$B:$B,$A8), SUMIFS(stockage!$E:$E,stockage!$C:$C,B$1,stockage!$B:$B,$A8), SUMIFS(stockage!$D:$D,stockage!$C:$C,B$1,stockage!$B:$B,$A8)+SUMIFS(stockage!$E:$E,stockage!$C:$C,B$1,stockage!$B:$B,$A8)) -> 289 | C8: =CHOOSE($H$28, SUMIFS(stockage!$D:$D,stockage!$C:$C,C$1,stockage!$B:$B,$A8), SUMIFS(stockage!$E:$E,stockage!$C:$C,C$1,stockage!$B:$B,$A8), SUMIFS(stockage!$D:$D,stockage!$C:$C,C$1,stockage!$B:$B,$A8)+SUMIFS(stockage!$E:$E,stockage!$C:$C,C$1,stockage!$B:$B,$A8)) -> 255 | D8: 0.1333333333 | E8: 287.6666667
A9: Août | B9: =CHOOSE($H$28, SUMIFS(stockage!$D:$D,stockage!$C:$C,B$1,stockage!$B:$B,$A9), SUMIFS(stockage!$E:$E,stockage!$C:$C,B$1,stockage!$B:$B,$A9), SUMIFS(stockage!$D:$D,stockage!$C:$C,B$1,stockage!$B:$B,$A9)+SUMIFS(stockage!$E:$E,stockage!$C:$C,B$1,stockage!$B:$B,$A9)) -> 275 | C9: =CHOOSE($H$28, SUMIFS(stockage!$D:$D,stockage!$C:$C,C$1,stockage!$B:$B,$A9), SUMIFS(stockage!$E:$E,stockage!$C:$C,C$1,stockage!$B:$B,$A9), SUMIFS(stockage!$D:$D,stockage!$C:$C,C$1,stockage!$B:$B,$A9)+SUMIFS(stockage!$E:$E,stockage!$C:$C,C$1,stockage!$B:$B,$A9)) -> 176 | D9: 0.5625 | E9: 295.9166667
A10: Septembre | B10: =CHOOSE($H$28, SUMIFS(stockage!$D:$D,stockage!$C:$C,B$1,stockage!$B:$B,$A10), SUMIFS(stockage!$E:$E,stockage!$C:$C,B$1,stockage!$B:$B,$A10), SUMIFS(stockage!$D:$D,stockage!$C:$C,B$1,stockage!$B:$B,$A10)+SUMIFS(stockage!$E:$E,stockage!$C:$C,B$1,stockage!$B:$B,$A10)) -> 330 | C10: =CHOOSE($H$28, SUMIFS(stockage!$D:$D,stockage!$C:$C,C$1,stockage!$B:$B,$A10), SUMIFS(stockage!$E:$E,stockage!$C:$C,C$1,stockage!$B:$B,$A10), SUMIFS(stockage!$D:$D,stockage!$C:$C,C$1,stockage!$B:$B,$A10)+SUMIFS(stockage!$E:$E,stockage!$C:$C,C$1,stockage!$B:$B,$A10)) -> 311 | D10: 0.06109324759 | E10: 297.5
A11: Octobre | B11: =CHOOSE($H$28, SUMIFS(stockage!$D:$D,stockage!$C:$C,B$1,stockage!$B:$B,$A11), SUMIFS(stockage!$E:$E,stockage!$C:$C,B$1,stockage!$B:$B,$A11), SUMIFS(stockage!$D:$D,stockage!$C:$C,B$1,stockage!$B:$B,$A11)+SUMIFS(stockage!$E:$E,stockage!$C:$C,B$1,stockage!$B:$B,$A11)) -> 337 | C11: =CHOOSE($H$28, SUMIFS(stockage!$D:$D,stockage!$C:$C,C$1,stockage!$B:$B,$A11), SUMIFS(stockage!$E:$E,stockage!$C:$C,C$1,stockage!$B:$B,$A11), SUMIFS(stockage!$D:$D,stockage!$C:$C,C$1,stockage!$B:$B,$A11)+SUMIFS(stockage!$E:$E,stockage!$C:$C,C$1,stockage!$B:$B,$A11)) -> 385 | D11: -0.1246753247 | E11: 293.5
A12: Novembre | B12: =CHOOSE($H$28, SUMIFS(stockage!$D:$D,stockage!$C:$C,B$1,stockage!$B:$B,$A12), SUMIFS(stockage!$E:$E,stockage!$C:$C,B$1,stockage!$B:$B,$A12), SUMIFS(stockage!$D:$D,stockage!$C:$C,B$1,stockage!$B:$B,$A12)+SUMIFS(stockage!$E:$E,stockage!$C:$C,B$1,stockage!$B:$B,$A12)) -> 287 | C12: =CHOOSE($H$28, SUMIFS(stockage!$D:$D,stockage!$C:$C,C$1,stockage!$B:$B,$A12), SUMIFS(stockage!$E:$E,stockage!$C:$C,C$1,stockage!$B:$B,$A12), SUMIFS(stockage!$D:$D,stockage!$C:$C,C$1,stockage!$B:$B,$A12)+SUMIFS(stockage!$E:$E,stockage!$C:$C,C$1,stockage!$B:$B,$A12)) -> 328 | D12: -0.125 | E12: 290.0833333
A13: Décembre | B13: =CHOOSE($H$28, SUMIFS(stockage!$D:$D,stockage!$C:$C,B$1,stockage!$B:$B,$A13), SUMIFS(stockage!$E:$E,stockage!$C:$C,B$1,stockage!$B:$B,$A13), SUMIFS(stockage!$D:$D,stockage!$C:$C,B$1,stockage!$B:$B,$A13)+SUMIFS(stockage!$E:$E,stockage!$C:$C,B$1,stockage!$B:$B,$A13)) -> 307 | C13: =CHOOSE($H$28, SUMIFS(stockage!$D:$D,stockage!$C:$C,C$1,stockage!$B:$B,$A13), SUMIFS(stockage!$E:$E,stockage!$C:$C,C$1,stockage!$B:$B,$A13), SUMIFS(stockage!$D:$D,stockage!$C:$C,C$1,stockage!$B:$B,$A13)+SUMIFS(stockage!$E:$E,stockage!$C:$C,C$1,stockage!$B:$B,$A13)) -> 319 | D13: -0.03761755486 | E13: 289.0833333
C14: =B2 -> 163
C15: =B3 -> 173
C16: 293
C17: 314
C18: 349
C19: 352
C20: 289
C21: 275
C22: 330
C23: 337
C24: 287
C25: 307
H28: 3
H33: 1
F36: durée moy mobile | G36: 12

Sheet parametres
A1: année | C1: dossier : | D1: S:\enseignement\iutenligne\ModXML8\modsrc\TabBord_0\accidents\donnees
A2: 1984
A3: 1985
A4: 1986
A5: 1987
A6: 1988 | C6: Importer classeur
A7: 1989
A8: 1990

Sheet stockage
A1: jour | B1: mois | C1: annee | D1: graves | E1: legers | F1: indemnes | G1: gravite | H1: luminosite | I1: intemperie | J1: surface
A2: 17 | B2: Septembre | C2: 1984 | D2: 1 | E2: 0 | F2: 1 | G2: 2 | H2: Jour | I2: Pluie forte | J2: Normal
A3: 22 | B3: Janvier | C3: 1984 | D3: 0 | E3: 1 | F3: 1 | G3: 1 | H3: Jour | I3: Grele | J3: T Dangereux
A4: 23 | B4: Avril | C4: 1984 | D4: 0 | E4: 1 | F4: 1 | G4: 1 | H4: Jour | I4: Pluie forte | J4: Normal
A5: 12 | B5: Juillet | C5: 1984 | D5: 0 | E5: 1 | F5: 1 | G5: 1 | H5: Jour | I5: Pluie forte | J5: Normal
A6: 31 | B6: Janvier | C6: 1984 | D6: 1 | E6: 0 | F6: 1 | G6: 2 | H6: Nuit | I6: Pluie forte | J6: Dangereux
A7: 15 | B7: Mai | C7: 1984 | D7: 0 | E7: 2 | F7: 1 | G7: 1 | H7: Jour | I7: Pluie forte | J7: Dangereux
A8: 3 | B8: Décembre | C8: 1984 | D8: 0 | E8: 1 | F8: 1 | G8: 1 | H8: Jour | I8: Pluie forte | J8: Normal
A9: 16 | B9: Fevrier | C9: 1984 | D9: 0 | E9: 1 | F9: 1 | G9: 1 | H9: Jour | I9: Pluie forte | J9: Dangereux
A10: 2 | B10: Janvier | C10: 1984 | D10: 1 | E10: 0 | F10: 1 | G10: 2 | H10: Jour | I10: Pluie forte | J10: Normal
A11: 26 | B11: Juin | C11: 1984 | D11: 0 | E11: 1 | F11: 1 | G11: 1 | H11: Jour | I11: Pluie forte | J11: Normal
A12: 26 | B12: Janvier | C12: 1984 | D12: 1 | E12: 0 | F12: 2 | G12: 2 | H12: Nuit | I12: Pluie forte | J12: Dangereux
A13: 7 | B13: Avril | C13: 1984 | D13: 0 | E13: 2 | F13: 1 | G13: 1 | H13: Jour | I13: Pluie forte | J13: Normal
A14: 2 | B14: Fevrier | C14: 1984 | D14: 0 | E14: 1 | F14: 1 | G14: 1 | H14: Nuit | I14: Pluie forte | J14: Dangereux
A15: 25 | B15: Juillet | C15: 1984 | D15: 0 | E15: 1 | F15: 1 | G15: 1 | H15: Jour | I15: Pluie forte | J15: Normal
A16: 22 | B16: Mai | C16: 1984 | D16: 0 | E16: 1 | F16: 1 | G16: 1 | H16: Jour | I16: Pluie forte | J16: Normal
A17: 1 | B17: Fevrier | C17: 1984 | D17: 0 | E17: 1 | F17: 1 | G17: 1 | H17: Jour | I17: Pluie forte | J17: Normal
A18: 20 | B18: Fevrier | C18: 1984 | D18: 1 | E18: 1 | F18: 0 | G18: 2 | H18: Jour | I18: Pluie forte | J18: Normal
A19: 30 | B19: Avril | C19: 1984 | D19: 0 | E19: 1 | F19: 1 | G19: 1 | H19: Jour | I19: Pluie forte | J19: Normal
A20: 30 | B20: Avril | C20: 1984 | D20: 0 | E20: 2 | F20: 1 | G20: 1 | H20: Nuit | I20: Pluie forte | J20: Normal
A21: 28 | B21: Mai | C21: 1984 | D21: 0 | E21: 2 | F21: 1 | G21: 1 | H21: Jour | I21: Pluie forte | J21: Normal
A22: 28 | B22: Fevrier | C22: 1984 | D22: 0 | E22: 4 | F22: 1 | G22: 1 | H22: Nuit | I22: Pluie forte | J22: Normal
A23: 5 | B23: Août | C23: 1984 | D23: 0 | E23: 4 | F23: 1 | G23: 1 | H23: Nuit | I23: Pluie forte | J23: Normal
A24: 16 | B24: Décembre | C24: 1984 | D24: 1 | E24: 0 | F24: 0 | G24: 2 | H24: Nuit | I24: Pluie forte | J24: Normal
A25: 17 | B25: Avril | C25: 1984 | D25: 0 | E25: 1 | F25: 1 | G25: 1 | H25: Jour | I25: Pluie forte | J25: Normal
A26: 3 | B26: Octobre | C26: 1984 | D26: 0 | E26: 1 | F26: 1 | G26: 1 | H26: Nuit | I26: Neige | J26: Dangereux
A27: 8 | B27: Novembre | C27: 1984 | D27: 2 | E27: 0 | F27: 0 | G27: 2 | H27: Nuit | I27: Pluie forte | J27: Normal
A28: 12 | B28: Décembre | C28: 1984 | D28: 0 | E28: 1 | F28: 1 | G28: 1 | H28: Nuit | I28: Pluie forte | J28: Normal
A29: 17 | B29: Novembre | C29: 1984 | D29: 0 | E29: 1 | F29: 1 | G29: 1 | H29: Nuit | I29: Pluie forte | J29: Normal
A30: 27 | B30: Octobre | C30: 1984 | D30: 0 | E30: 0 | F30: 1 | G30: 3 | H30: Jour | I30: Pluie forte | J30: Normal
A31: 11 | B31: Janvier | C31: 1984 | D31: 0 | E31: 1 | F31: 1 | G31: 1 | H31: Nuit | I31: Pluie forte | J31: Normal
A32: 23 | B32: Janvier | C32: 1984 | D32: 0 | E32: 1 | F32: 1 | G32: 1 | H32: Jour | I32: Pluie forte | J32: T Dangereux
A33: 14 | B33: Fevrier | C33: 1984 | D33: 1 | E33: 0 | F33: 1 | G33: 2 | H33: Jour | I33: Pluie forte | J33: Normal
A34: 24 | B34: Mai | C34: 1984 | D34: 0 | E34: 1 | F34: 1 | G34: 1 | H34: Nuit | I34: Pluie forte | J34: Normal
A35: 2 | B35: Octobre | C35: 1984 | D35: 0 | E35: 2 | F35: 1 | G35: 1 | H35: Jour | I35: Pluie forte | J35: Normal
A36: 12 | B36: Mars | C36: 1984 | D36: 0 | E36: 1 | F36: 1 | G36: 1 | H36: Jour | I36: Pluie forte | J36: Normal
A37: 9 | B37: Juin | C37: 1984 | D37: 0 | E37: 1 | F37: 1 | G37: 1 | H37: Jour | I37: Pluie forte | J37: Normal
A38: 7 | B38: Avril | C38: 1984 | D38: 1 | E38: 0 | F38: 1 | G38: 2 | H38: Jour | I38: Pluie forte | J38: Normal
A39: 16 | B39: Fevrier | C39: 1984 | D39: 0 | E39: 1 | F39: 1 | G39: 1 | H39: Jour | I39: Pluie forte | J39: Normal
A40: 18 | B40: Décembre | C40: 1984 | D40: 0 | E40: 1 | F40: 1 | G40: 1 | H40: Jour | I40: Pluie forte | J40: Dangereux
A41: 28 | B41: Janvier | C41: 1984 | D41: 0 | E41: 1 | F41: 1 | G41: 1 | H41: Jour | I41: Pluie forte | J41: Normal
A42: 13 | B42: Octobre | C42: 1984 | D42: 0 | E42: 1 | F42: 2 | G42: 1 | H42: Jour | I42: Pluie forte | J42: Normal
A43: 13 | B43: Avril | C43: 1984 | D43: 0 | E43: 1 | F43: 1 | G43: 1 | H43: Jour | I43: Pluie forte | J43: Normal
A44: 11 | B44: Fevrier | C44: 1984 | D44: 1 | E44: 0 | F44: 0 | G44: 2 | H44: Nuit | I44: Pluie forte | J44: Normal
A45: 15 | B45: Janvier | C45: 1984 | D45: 1 | E45: 0 | F45: 1 | G45: 2 | H45: Nuit | I45: Pluie forte | J45: Normal
A46: 13 | B46: Mars | C46: 1984 | D46: 0 | E46: 1 | F46: 0 | G46: 1 | H46: Jour | I46: Pluie forte | J46: Normal
A47: 13 | B47: Mars | C47: 1984 | D47: 1 | E47: 0 | F47: 1 | G47: 2 | H47: Jour | I47: Pluie forte | J47: Normal
A48: 28 | B48: Mars | C48: 1984 | D48: 0 | E48: 1 | F48: 1 | G48: 1 | H48: Jour | I48: Pluie forte | J48: Normal
A49: 23 | B49: Décembre | C49: 1984 | D49: 0 | E49: 1 | F49: 1 | G49: 1 | H49: Nuit | I49: Neige | J49: Dangereux
A50: 30 | B50: Novembre | C50: 1984 | D50: 1 | E50: 0 | F50: 1 | G50: 2 | H50: Jour | I50: Pluie forte | J50: Normal
A51: 5 | B51: Juillet | C51: 1984 | D51: 1 | E51: 0 | F51: 2 | G51: 2 | H51: Jour | I51: Pluie forte | J51: Normal
A52: 17 | B52: Janvier | C52: 1984 | D52: 1 | E52: 0 | F52: 0 | G52: 2 | H52: Jour | I52: Inconnu | J52: Normal
A53: 27 | B53: Janvier | C53: 1984 | D53: 1 | E53: 0 | F53: 1 | G53: 2 | H53: Nuit | I53: Neige | J53: Dangereux
A54: 24 | B54: Novembre | C54: 1984 | D54: 0 | E54: 0 | F54: 1 | G54: 3 | H54: Nuit | I54: Neige | J54: Dangereux
A55: 12 | B55: Juin | C55: 1984 | D55: 1 | E55: 0 | F55: 0 | G55: 2 | H55: Jour | I55: Pluie forte | J55: Normal
A56: 8 | B56: Octobre | C56: 1984 | D56: 1 | E56: 0 | F56: 0 | G56: 2 | H56: Jour | I56: Pluie legere | J56: Dangereux
A57: 12 | B57: Janvier | C57: 1984 | D57: 0 | E57: 2 | F57: 0 | G57: 1 | H57: Jour | I57: Pluie forte | J57: Normal
A58: 7 | B58: Novembre | C58: 1984 | D58: 0 | E58: 1 | F58: 1 | G58: 1 | H58: Jour | I58: Pluie forte | J58: Normal
A59: 4 | B59: Janvier | C59: 1984 | D59: 3 | E59: 1 | F59: 0 | G59: 2 | H59: Jour | I59: Pluie forte | J59: Normal
A60: 25 | B60: Mars | C60: 1984 | D60: 1 | E60: 0 | F60: 1 | G60: 2 | H60: Nuit | I60: Pluie forte | J60: Dangereux
A61: 6 | B61: Avril | C61: 1984 | D61: 0 | E61: 1 | F61: 1 | G61: 1 | H61: Jour | I61: Pluie legere | J61: Dangereux
A62: 21 | B62: Juin | C62: 1984 | D62: 1 | E62: 0 | F62: 1 | G62: 2 | H62: Jour | I62: Pluie forte | J62: Normal
A63: 18 | B63: Septembre | C63: 1984 | D63: 0 | E63: 2 | F63: 1 | G63: 1 | H63: Jour | I63: Pluie forte | J63: Normal
A64: 14 | B64: Novembre | C64: 1984 | D64: 0 | E64: 2 | F64: 1 | G64: 1 | H64: Jour | I64: Pluie forte | J64: Normal
A65: 28 | B65: Septembre | C65: 1984 | D65: 1 | E65: 0 | F65: 1 | G65: 2 | H65: Jour | I65: Pluie forte | J65: Normal
A66: 3 | B66: Avril | C66: 1984 | D66: 0 | E66: 1 | F66: 1 | G66: 1 | H66: Jour | I66: Pluie forte | J66: Normal
A67: 8 | B67: Décembre | C67: 1984 | D67: 0 | E67: 1 | F67: 1 | G67: 1 | H67: Jour | I67: Pluie forte | J67: Normal
A68: 29 | B68: Mars | C68: 1984 | D68: 0 | E68: 1 | F68: 1 | G68: 1 | H68: Jour | I68: Pluie forte | J68: Normal
A69: 13 | B69: Novembre | C69: 1984 | D69: 1 | E69: 0 | F69: 0 | G69: 2 | H69: Nuit | I69: Pluie forte | J69: Normal
A70: 21 | B70: Janvier | C70: 1984 | D70: 2 | E70: 0 | F70: 1 | G70: 2 | H70: Jour | I70: Pluie forte | J70: Normal
A71: 20 | B71: Septembre | C71: 1984 | D71: 1 | E71: 0 | F71: 1 | G71: 2 | H71: Jour | I71: Pluie forte | J71: Normal
A72: 16 | B72: Août | C72: 1984 | D72: 0 | E72: 1 | F72: 1 | G72: 1 | H72: Nuit | I72: Pluie forte | J72: Normal
A73: 31 | B73: Août | C73: 1984 | D73: 1 | E73: 1 | F73: 1 | G73: 2 | H73: Jour | I73: Pluie forte | J73: Normal
A74: 28 | B74: Janvier | C74: 1984 | D74: 1 | E74: 0 | F74: 1 | G74: 2 | H74: Jour | I74: Pluie forte | J74: Normal
A75: 21 | B75: Mars | C75: 1984 | D75: 0 | E75: 1 | F75: 1 | G75: 1 | H75: Jour | I75: Pluie forte | J75: Normal
A76: 21 | B76: Mars | C76: 1984 | D76: 1 | E76: 0 | F76: 1 | G76: 2 | H76: Jour | I76: Pluie forte | J76: Normal
A77: 6 | B77: Janvier | C77: 1984 | D77: 0 | E77: 0 | F77: 1 | G77: 3 | H77: Nuit | I77: Pluie forte | J77: T Dangereux
A78: 10 | B78: Fevrier | C78: 1984 | D78: 1 | E78: 0 | F78: 0 | G78: 2 | H78: Jour | I78: Pluie forte | J78: T Dangereux
A79: 10 | B79: Mars | C79: 1984 | D79: 0 | E79: 1 | F79: 3 | G79: 1 | H79: Nuit | I79: Neige | J79: Dangereux
A80: 10 | B80: Mars | C80: 1984 | D80: 1 | E80: 0 | F80: 1 | G80: 2 | H80: Nuit | I80: Neige | J80: Dangereux
A81: 9 | B81: Décembre | C81: 1984 | D81: 0 | E81: 1 | F81: 1 | G81: 1 | H81: Jour | I81: Pluie forte | J81: Normal
A82: 23 | B82: Mai | C82: 1984 | D82: 0 | E82: 1 | F82: 1 | G82: 1 | H82: Jour | I82: Pluie forte | J82: Normal
A83: 14 | B83: Août | C83: 1984 | D83: 0 | E83: 1 | F83: 1 | G83: 1 | H83: Jour | I83: Pluie forte | J83: Normal
A84: 27 | B84: Octobre | C84: 1984 | D84: 1 | E84: 4 | F84: 0 | G84: 2 | H84: Jour | I84: Pluie forte | J84: T Dangereux
A85: 30 | B85: Janvier | C85: 1984 | D85: 0 | E85: 1 | F85: 1 | G85: 1 | H85: Nuit | I85: Pluie forte | J85: Normal
A86: 19 | B86: Novembre | C86: 1984 | D86: 1 | E86: 0 | F86: 1 | G86: 2 | H86: Nuit | I86: Pluie forte | J86: Normal
A87: 7 | B87: Janvier | C87: 1984 | D87: 0 | E87: 1 | F87: 1 | G87: 1 | H87: Jour | I87: Neige | J87: Dangereux
A88: 7 | B88: Janvier | C88: 1984 | D88: 1 | E88: 0 | F88: 1 | G88: 2 | H88: Jour | I88: Pluie forte | J88: Normal
A89: 11 | B89: Mars | C89: 1984 | D89: 1 | E89: 0 | F89: 1 | G89: 2 | H89: Nuit | I89: Pluie forte | J89: Normal
A90: 18 | B90: Juillet | C90: 1984 | D90: 0 | E90: 1 | F90: 1 | G90: 1 | H90: Jour | I90: Pluie forte | J90: Normal
A91: 19 | B91: Avril | C91: 1984 | D91: 0 | E91: 1 | F91: 0 | G91: 1 | H91: Jour | I91: Pluie forte | J91: Normal
A92: 25 | B92: Fevrier | C92: 1984 | D92: 1 | E92: 0 | F92: 2 | G92: 2 | H92: Jour | I92: Pluie forte | J92: Normal
A93: 11 | B93: Octobre | C93: 1984 | D93: 0 | E93: 1 | F93: 0 | G93: 3 | H93: Nuit | I93: Pluie forte | J93: Normal
A94: 15 | B94: Juin | C94: 1984 | D94: 0 | E94: 1 | F94: 1 | G94: 1 | H94: Jour | I94: Pluie forte | J94: Normal
A95: 26 | B95: Septembre | C95: 1984 | D95: 1 | E95: 0 | F95: 1 | G95: 2 | H95: Nuit | I95: Pluie forte | J95: Normal
A96: 19 | B96: Septembre | C96: 1984 | D96: 1 | E96: 0 | F96: 1 | G96: 2 | H96: Nuit | I96: Pluie forte | J96: Normal
A97: 28 | B97: Mai | C97: 1984 | D97: 0 | E97: 1 | F97: 1 | G97: 1 | H97: Jour | I97: Neige | J97: Dangereux
A98: 25 | B98: Janvier | C98: 1984 | D98: 1 | E98: 0 | F98: 1 | G98: 2 | H98: Jour | I98: Pluie forte | J98: T Dangereux
A99: 16 | B99: Fevrier | C99: 1984 | D99: 0 | E99: 1 | F99: 0 | G99: 1 | H99: Jour | I99: Pluie forte | J99: Normal
A100: 2 | B100: Juin | C100: 1984 | D100: 1 | E100: 0 | F100: 1 | G100: 2 | H100: Jour | I100: Pluie forte | J100: Normal
A101: 2 | B101: Mars | C101: 1984 | D101: 1 | E101: 0 | F101: 0 | G101: 2 | H101: Jour | I101: Inconnu | J101: Dangereux
A102: 9 | B102: Fevrier | C102: 1984 | D102: 1 | E102: 0 | F102: 1 | G102: 2 | H102: Jour | I102: Pluie forte | J102: Normal
A103: 30 | B103: Mai | C103: 1984 | D103: 1 | E103: 1 | F103: 0 | G103: 2 | H103: Nuit | I103: Pluie forte | J103: Normal
A104: 19 | B104: Juin | C104: 1984 | D104: 0 | E104: 0 | F104: 2 | G104: 3 | H104: Jour | I104: Pluie forte | J104: Normal
A105: 23 | B105: Septembre | C105: 1984 | D105: 1 | E105: 3 | F105: 0 | G105: 2 | H105: Jour | I105: Pluie forte | J105: Normal
A106: 29 | B106: Janvier | C106: 1984 | D106: 1 | E106: 0 | F106: 0 | G106: 2 | H106: Nuit | I106: Neige | J106: Dangereux
A107: 11 | B107: Janvier | C107: 1984 | D107: 1 | E107: 0 | F107: 1 | G107: 2 | H107: Jour | I107: Pluie forte | J107: Dangereux
A108: 16 | B108: Janvier | C108: 1984 | D108: 1 | E108: 0 | F108: 2 | G108: 2 | H108: Jour | I108: Neige | J108: Dangereux
A109: 9 | B109: Décembre | C109: 1984 | D109: 1 | E109: 0 | F109: 1 | G109: 3 | H109: Nuit | I109: Pluie forte | J109: Dangereux
A110: 4 | B110: Janvier | C110: 1984 | D110: 1 | E110: 0 | F110: 1 | G110: 2 | H110: Jour | I110: Pluie legere | J110: Dangereux
A111: 1 | B111: Mars | C111: 1984 | D111: 0 | E111: 1 | F111: 0 | G111: 1 | H111: Nuit | I111: Pluie forte | J111: Normal
A112: 24 | B112: Novembre | C112: 1984 | D112: 0 | E112: 1 | F112: 1 | G112: 1 | H112: Nuit | I112: Neige | J112: Dangereux
A113: 8 | B113: Mars | C113: 1984 | D113: 0 | E113: 2 | F113: 1 | G113: 1 | H113: Jour | I113: Pluie forte | J113: Normal
A114: 27 | B114: Janvier | C114: 1984 | D114: 0 | E114: 1 | F114: 1 | G114: 1 | H114: Jour | I114: Pluie forte | J114: Normal
A115: 17 | B115: Mars | C115: 1984 | D115: 0 | E115: 1 | F115: 1 | G115: 1 | H115: Jour | I115: Pluie forte | J115: Normal
A116: 1 | B116: Décembre | C116: 1984 | D116: 1 | E116: 0 | F116: 1 | G116: 2 | H116: Nuit | I116: Pluie forte | J116: Normal
A117: 22 | B117: Décembre | C117: 1984 | D117: 0 | E117: 1 | F117: 1 | G117: 1 | H117: Jour | I117: Pluie forte | J117: Normal
A118: 4 | B118: Octobre | C118: 1984 | D118: 1 | E118: 0 | F118: 1 | G118: 2 | H118: Nuit | I118: Pluie forte | J118: Normal
A119: 28 | B119: Novembre | C119: 1984 | D119: 0 | E119: 1 | F119: 1 | G119: 1 | H119: Jour | I119: Pluie forte | J119: Normal
A120: 14 | B120: Avril | C120: 1984 | D120: 0 | E120: 1 | F120: 1 | G120: 1 | H120: Jour | I120: Pluie forte | J120: Normal
A121: 29 | B121: Janvier | C121: 1984 | D121: 1 | E121: 0 | F121: 1 | G121: 2 | H121: Nuit | I121: Pluie forte | J121: Normal
A122: 28 | B122: Juin | C122: 1984 | D122: 1 | E122: 0 | F122: 1 | G122: 2 | H122: Jour | I122: Pluie forte | J122: Normal
A123: 19 | B123: Novembre | C123: 1984 | D123: 1 | E123: 0 | F123: 1 | G123: 2 | H123: Jour | I123: Pluie forte | J123: Dangereux
A124: 31 | B124: Juillet | C124: 1984 | D124: 0 | E124: 0 | F124: 1 | G124: 3 | H124: Jour | I124: Pluie forte | J124: Normal
A125: 3 | B125: Janvier | C125: 1984 | D125: 0 | E125: 0 | F125: 1 | G125: 3 | H125: Nuit | I125: Pluie forte | J125: Dangereux
A126: 5 | B126: Juillet | C126: 1984 | D126: 0 | E126: 3 | F126: 1 | G126: 1 | H126: Jour | I126: Pluie forte | J126: Normal
A127: 5 | B127: Décembre | C127: 1984 | D127: 0 | E127: 1 | F127: 1 | G127: 1 | H127: Nuit | I127: Pluie forte | J127: Normal
A128: 26 | B128: Mars | C128: 1984 | D128: 1 | E128: 0 | F128: 1 | G128: 2 | H128: Jour | I128: Neige | J128: Dangereux
A129: 6 | B129: Octobre | C129: 1984 | D129: 1 | E129: 1 | F129: 1 | G129: 2 | H129: Nuit | I129: Pluie forte | J129: Normal
A130: 21 | B130: Décembre | C130: 1984 | D130: 1 | E130: 0 | F130: 0 | G130: 2 | H130: Nuit | I130: Pluie forte | J130: Normal
A131: 18 | B131: Mai | C131: 1984 | D131: 1 | E131: 0 | F131: 0 | G131: 2 | H131: Jour | I131: Pluie forte | J131: Normal
A132: 18 | B132: Juin | C132: 1984 | D132: 0 | E132: 1 | F132: 2 | G132: 1 | H132: Jour | I132: Pluie forte | J132: Normal
A133: 10 | B133: Octobre | C133: 1984 | D133: 0 | E133: 1 | F133: 0 | G133: 1 | H133: Nuit | I133: Pluie forte | J133: Normal
A134: 17 | B134: Novembre | C134: 1984 | D134: 0 | E134: 2 | F134: 1 | G134: 1 | H134: Nuit | I134: Pluie forte | J134: Dangereux
A135: 14 | B135: Septembre | C135: 1984 | D135: 1 | E135: 0 | F135: 1 | G135: 2 | H135: Jour | I135: Pluie forte | J135: Normal
A136: 9 | B136: Janvier | C136: 1984 | D136: 1 | E136: 0 | F136: 1 | G136: 2 | H136: Jour | I136: Pluie forte | J136: Dangereux
A137: 6 | B137: Avril | C137: 1984 | D137: 1 | E137: 0 | F137: 1 | G137: 2 | H137: Jour | I137: Neige | J137: Dangereux
A138: 22 | B138: Décembre | C138: 1984 | D138: 1 | E138: 0 | F138: 1 | G138: 2 | H138: Nuit | I138: Pluie forte | J138: Normal
A139: 21 | B139: Fevrier | C139: 1984 | D139: 1 | E139: 0 | F139: 1 | G139: 2 | H139: Jour | I139: Pluie forte | J139: Normal
A140: 30 | B140: Mai | C140: 1984 | D140: 1 | E140: 0 | F140: 1 | G140: 2 | H140: Jour | I140: Pluie forte | J140: Normal
A141: 26 | B141: Mai | C141: 1984 | D141: 1 | E141: 0 | F141: 1 | G141: 2 | H141: Jour | I141: Pluie forte | J141: Normal
A142: 1 | B142: Juin | C142: 1984 | D142: 0 | E142: 2 | F142: 0 | G142: 1 | H142: Nuit | I142: Pluie forte | J142: Normal
A143: 16 | B143: Juin | C143: 1984 | D143: 0 | E143: 1 | F143: 1 | G143: 3 | H143: Jour | I143: Pluie forte | J143: Normal
A144: 29 | B144: Novembre | C144: 1984 | D144: 1 | E144: 0 | F144: 1 | G144: 2 | H144: Nuit | I144: Pluie forte | J144: Normal
A145: 11 | B145: Janvier | C145: 1984 | D145: 1 | E145: 1 | F145: 0 | G145: 2 | H145: Nuit | I145: Pluie forte | J145: Normal
A146: 4 | B146: Fevrier | C146: 1984 | D146: 1 | E146: 1 | F146: 0 | G146: 2 | H146: Jour | I146: Pluie forte | J146: Normal
A147: 28 | B147: Septembre | C147: 1984 | D147: 0 | E147: 0 | F147: 1 | G147: 3 | H147: Jour | I147: Pluie forte | J147: Normal
A148: 9 | B148: Janvier | C148: 1984 | D148: 0 | E148: 0 | F148: 0 | G148: 3 | H148: Jour | I148: Pluie forte | J148: Normal
A149: 9 | B149: Octobre | C149: 1984 | D149: 1 | E149: 0 | F149: 1 | G149: 3 | H149: Nuit | I149: Pluie legere | J149: Dangereux
A150: 30 | B150: Avril | C150: 1984 | D150: 0 | E150: 0 | F150: 1 | G150: 3 | H150: Jour | I150: Pluie forte | J150: Normal
A151: 18 | B151: Novembre | C151: 1984 | D151: 0 | E151: 2 | F151: 0 | G151: 1 | H151: Nuit | I151: Pluie forte | J151: Dangereux
A152: 2 | B152: Fevrier | C152: 1984 | D152: 1 | E152: 0 | F152: 1 | G152: 2 | H152: Jour | I152: Pluie forte | J152: Dangereux
A153: 30 | B153: Mars | C153: 1984 | D153: 3 | E153: 0 | F153: 0 | G153: 3 | H153: Jour | I153: Pluie forte | J153: Normal
A154: 15 | B154: Mars | C154: 1984 | D154: 2 | E154: 0 | F154: 1 | G154: 2 | H154: Nuit | I154: Pluie forte | J154: Normal
A155: 6 | B155: Octobre | C155: 1984 | D155: 0 | E155: 1 | F155: 1 | G155: 1 | H155: Jour | I155: Neige | J155: Dangereux
A156: 26 | B156: Octobre | C156: 1984 | D156: 0 | E156: 1 | F156: 1 | G156: 1 | H156: Jour | I156: Pluie forte | J156: Normal
A157: 3 | B157: Mars | C157: 1984 | D157: 1 | E157: 1 | F157: 1 | G157: 2 | H157: Jour | I157: Neige | J157: Dangereux
A158: 20 | B158: Octobre | C158: 1984 | D158: 0 | E158: 2 | F158: 0 | G158: 1 | H158: Jour | I158: Pluie forte | J158: Normal
A159: 9 | B159: Septembre | C159: 1984 | D159: 0 | E159: 3 | F159: 2 | G159: 1 | H159: Nuit | I159: Neige | J159: Dangereux
A160: 1 | B160: Juin | C160: 1984 | D160: 1 | E160: 0 | F160: 1 | G160: 2 | H160: Jour | I160: Pluie legere | J160: Dangereux
A161: 6 | B161: Août | C161: 1984 | D161: 0 | E161: 1 | F161: 1 | G161: 1 | H161: Jour | I161: Pluie forte | J161: Normal
A162: 26 | B162: Décembre | C162: 1984 | D162: 1 | E162: 0 | F162: 1 | G162: 2 | H162: Jour | I162: Pluie forte | J162: Normal
A163: 9 | B163: Mars | C163: 1984 | D163: 0 | E163: 1 | F163: 2 | G163: 1 | H163: Jour | I163: Pluie forte | J163: Normal
A164: 20 | B164: Janvier | C164: 1984 | D164: 0 | E164: 1 | F164: 1 | G164: 1 | H164: Jour | I164: Pluie forte | J164: Normal
A165: 7 | B165: Juillet | C165: 1984 | D165: 0 | E165: 1 | F165: 1 | G165: 1 | H165: Jour | I165: Pluie forte | J165: Normal
A166: 23 | B166: Septembre | C166: 1984 | D166: 0 | E166: 2 | F166: 1 | G166: 1 | H166: Nuit | I166: Neige | J166: Dangereux
A167: 12 | B167: Janvier | C167: 1984 | D167: 0 | E167: 1 | F167: 1 | G167: 1 | H167: Jour | I167: Pluie forte | J167: Dangereux
A168: 27 | B168: Octobre | C168: 1984 | D168: 0 | E168: 1 | F168: 1 | G168: 1 | H168: Jour | I168: Pluie forte | J168: Normal
A169: 27 | B169: Octobre | C169: 1984 | D169: 0 | E169: 1 | F169: 1 | G169: 1 | H169: Jour | I169: Pluie forte | J169: Normal
A170: 30 | B170: Octobre | C170: 1984 | D170: 0 | E170: 1 | F170: 1 | G170: 1 | H170: Jour | I170: Pluie forte | J170: Normal
A171: 6 | B171: Novembre | C171: 1984 | D171: 0 | E171: 1 | F171: 1 | G171: 1 | H171: Jour | I171: Pluie forte | J171: Normal
A172: 22 | B172: Août | C172: 1984 | D172: 0 | E172: 1 | F172: 1 | G172: 1 | H172: Jour | I172: Pluie forte | J172: Normal
A173: 10 | B173: Août | C173: 1984 | D173: 1 | E173: 0 | F173: 1 | G173: 2 | H173: Jour | I173: Pluie forte | J173: Normal
A174: 30 | B174: Septembre | C174: 1984 | D174: 1 | E174: 2 | F174: 1 | G174: 2 | H174: Jour | I174: Pluie legere | J174: Dangereux
A175: 9 | B175: Juillet | C175: 1984 | D175: 0 | E175: 1 | F175: 1 | G175: 1 | H175: Jour | I175: Pluie forte | J175: Normal
A176: 26 | B176: Juillet | C176: 1984 | D176: 0 | E176: 1 | F176: 2 | G176: 1 | H176: Jour | I176: Pluie forte | J176: Normal
A177: 1 | B177: Décembre | C177: 1984 | D177: 0 | E177: 1 | F177: 1 | G177: 1 | H177: Jour | I177: Pluie forte | J177: Normal
A178: 8 | B178: Mars | C178: 1984 | D178: 0 | E178: 1 | F178: 2 | G178: 1 | H178: Jour | I178: Pluie forte | J178: Normal
A179: 23 | B179: Décembre | C179: 1984 | D179: 0 | E179: 2 | F179: 0 | G179: 1 | H179: Nuit | I179: Neige | J179: Dangereux
A180: 3 | B180: Décembre | C180: 1984 | D180: 0 | E180: 1 | F180: 1 | G180: 1 | H180: Jour | I180: Pluie forte | J180: Normal
A181: 5 | B181: Septembre | C181: 1984 | D181: 0 | E181: 1 | F181: 1 | G181: 1 | H181: Jour | I181: Pluie forte | J181: Normal
A182: 22 | B182: Mars | C182: 1984 | D182: 0 | E182: 1 | F182: 1 | G182: 1 | H182: Jour | I182: Pluie forte | J182: Normal
A183: 8 | B183: Mai | C183: 1984 | D183: 0 | E183: 1 | F183: 1 | G183: 1 | H183: Jour | I183: Pluie forte | J183: Normal
A184: 2 | B184: Mars | C184: 1984 | D184: 0 | E184: 1 | F184: 1 | G184: 1 | H184: Jour | I184: Pluie forte | J184: Normal
A185: 1 | B185: Septembre | C185: 1984 | D185: 1 | E185: 0 | F185: 1 | G185: 2 | H185: Nuit | I185: Pluie forte | J185: Normal
A186: 7 | B186: Janvier | C186: 1984 | D186: 2 | E186: 0 | F186: 1 | G186: 2 | H186: Nuit | I186: Pluie forte | J186: Normal
A187: 7 | B187: Janvier | C187: 1984 | D187: 0 | E187: 1 | F187: 1 | G187: 1 | H187: Nuit | I187: Pluie forte | J187: Normal
A188: 22 | B188: Janvier | C188: 1984 | D188: 0 | E188: 2 | F188: 0 | G188: 1 | H188: Nuit | I188: Pluie forte | J188: Normal
A189: 4 | B189: Juin | C189: 1984 | D189: 0 | E189: 1 | F189: 1 | G189: 1 | H189: Jour | I189: Neige | J189: Dangereux
A190: 6 | B190: Septembre | C190: 1984 | D190: 0 | E190: 1 | F190: 1 | G190: 1 | H190: Jour | I190: Pluie forte | J190: Normal
A191: 6 | B191: Septembre | C191: 1984 | D191: 0 | E191: 1 | F191: 1 | G191: 1 | H191: Jour | I191: Pluie forte | J191: Normal
A192: 31 | B192: Octobre | C192: 1984 | D192: 0 | E192: 1 | F192: 1 | G192: 1 | H192: Nuit | I192: Pluie forte | J192: Normal
A193: 31 | B193: Octobre | C193: 1984 | D193: 0 | E193: 1 | F193: 1 | G193: 1 | H193: Nuit | I193: Pluie forte | J193: Normal
A194: 28 | B194: Fevrier | C194: 1984 | D194: 1 | E194: 0 | F194: 1 | G194: 2 | H194: Jour | I194: Neige | J194: Dangereux
A195: 1 | B195: Fevrier | C195: 1984 | D195: 0 | E195: 1 | F195: 1 | G195: 1 | H195: Nuit | I195: Neige | J195: Dangereux
A196: 8 | B196: Octobre | C196: 1984 | D196: 0 | E196: 1 | F196: 0 | G196: 1 | H196: Nuit | I196: Pluie forte | J196: Dangereux
A197: 24 | B197: Août | C197: 1984 | D197: 0 | E197: 1 | F197: 1 | G197: 1 | H197: Jour | I197: Neige | J197: Dangereux
A198: 23 | B198: Fevrier | C198: 1984 | D198: 0 | E198: 1 | F198: 2 | G198: 1 | H198: Jour | I198: Neige | J198: Dangereux
A199: 11 | B199: Octobre | C199: 1984 | D199: 0 | E199: 1 | F199: 0 | G199: 1 | H199: Jour | I199: Pluie forte | J199: Normal
A200: 25 | B200: Août | C200: 1984 | D200: 0 | E200: 1 | F200: 1 | G200: 1 | H200: Jour | I200: Pluie forte | J200: Normal
... 4300 more rows
